fUST/lending_fUST_20240727
["ID","MTS","AMOUNT","RATE_DAILY","PERIOD"]
[333315931,1722053439600,-659.48,0.00013698,2]
[333315932,1722053439610,-500.0,0.00013698,2]
[333315933,1722053439620,-500.0,0.00013698,2]
[333315934,1722053439629,-3240.26,0.00013698,2]
[333315935,1722053439638,-500.0,0.00013698,2]
[333315936,1722053439648,-796.05,0.00013698,2]
[333315937,1722053439657,-510.23796948,0.00013698,2]
[333315938,1722053439667,-1698.04,0.00013698,2]
[333315939,1722053439677,-513.73,0.00013698,2]
[333315940,1722053439690,-523.7,0.00013698,2]
[333315941,1722053439700,-500.0,0.00013698,2]
[333315942,1722053439710,-500.0,0.00013698,2]
[333315943,1722053439720,-505.23021985,0.00013698,2]
[333315944,1722053439729,-504.06904756,0.00013698,2]
[333315945,1722053439740,-500.0,0.00013698,2]
[333315946,1722053439749,-500.0,0.00013698,2]
[333315947,1722053439760,-500.0,0.00013698,2]
[333315948,1722053439769,-500.0,0.00013698,2]
[333315949,1722053439780,-875.08,0.00013698,2]
[333315950,1722053439790,-540.71,0.00013698,2]
[333315951,1722053439801,-812.73,0.00013698,2]
[333315952,1722053439814,-705.22,0.00013698,2]
[333315953,1722053439826,-1992.72,0.00013698,2]
[333315954,1722053439836,-735.65,0.00013698,2]
[333315955,1722053439848,-505.79929921,0.00013698,2]
[333315956,1722053439858,-745.93,0.00013698,2]
[333315957,1722053439868,-1183.49,0.00013698,2]
[333315958,1722053439878,-500.0,0.00013698,2]
[333315959,1722053439887,-500.0,0.00013698,2]
[333315960,1722053439897,-3193.74,0.00013698,2]
[333315961,1722053439906,-500.0,0.00013698,2]
[333315962,1722053439915,-243.70941437,0.00013698,2]
[333315963,1722053439924,-6263.19,0.00013698,2]
[333315964,1722053439934,-1157.5,0.00013698,2]
[333315965,1722053439943,-2330.92,0.00013698,2]
[333315967,1722053439953,-1672.62,0.00013698,2]
[333315969,1722053439964,-1039.76,0.00013698,2]
[333315971,1722053439973,-500.0,0.00013698,2]
[333315973,1722053439982,-500.0,0.00013698,2]
[333315975,1722053439993,-500.0,0.00013698,2]
[333315977,1722053440002,-1160.55,0.00013698,2]
[333315980,1722053440012,-1005.6,0.00013698,2]
[333315982,1722053440021,-500.0,0.00013698,2]
[333315984,1722053440030,-710.42,0.00013698,2]
[333315986,1722053440039,-1183.06,0.00013698,2]
[333315988,1722053440048,-500.0,0.00013698,2]
[333315990,1722053440057,-1240.31,0.00013698,2]
[333315992,1722053440072,-500.0,0.00013698,2]
[333315995,1722053440084,-889.48,0.00013698,2]
[333315996,1722053440097,-500.0,0.00013698,2]
[333315997,1722053440110,-500.0,0.00013698,2]
[333316000,1722053440122,-500.0,0.00013698,2]
[333316002,1722053440136,-608.23,0.00013698,2]
[333316004,1722053440148,-500.0,0.00013698,2]
[333316006,1722053440160,-554.68,0.00013698,2]
[333316009,1722053440170,-500.0,0.00013698,2]
[333316011,1722053440184,-1859.67,0.00013698,2]
[333316013,1722053440196,-500.0,0.00013698,2]
[333316016,1722053440206,-500.0,0.00013698,2]
[333316018,1722053440222,-500.0,0.00013698,2]
[333316020,1722053440234,-500.0,0.00013698,2]
[333316022,1722053440245,-2143.3,0.00013698,2]
[333316025,1722053440259,-500.0,0.00013698,2]
[333316027,1722053440271,-500.0,0.00013698,2]
[333316029,1722053440283,-500.0,0.00013698,2]
[333316031,1722053440295,-800.67,0.00013698,2]
[333316034,1722053440306,-500.0,0.00013698,2]
[333316036,1722053440319,-2341.95,0.00013698,2]
[333316038,1722053440332,-500.0,0.00013698,2]
[333316041,1722053440345,-216.02967002,0.00013698,2]
[333316043,1722053440358,-500.0,0.00013698,2]
[333316045,1722053440369,-2665.91,0.00013698,2]
[333316048,1722053440379,-500.0,0.00013698,2]
[333316050,1722053440391,-1174.7,0.00013698,2]
[333316052,1722053440404,-555.601863,0.00013699,2]
[333316055,1722053440416,-150.112233,0.000137,2]
[333316057,1722053440427,-1409.0,0.00013703,2]
[333316059,1722053440438,-500.0,0.00013799,2]
[333316061,1722053440450,-150.112233,0.000138,2]
[333316064,1722053440463,-2068.5307448,0.00013862,2]
[333316066,1722053440473,-500.0,0.00013871,2]
[333316068,1722053440483,-500.0,0.00013871,2]
[333316070,1722053440493,-500.0,0.00013871,2]
[333316072,1722053440505,-500.0,0.00013871,2]
[333316074,1722053440516,-460.28385884,0.00013871,2]
[333316076,1722053440527,-199.47447173,0.00013871,2]
[333316079,1722053440539,-500.0,0.00013871,2]
[333316081,1722053440550,-500.0,0.00013871,2]
[333316083,1722053440561,-500.0,0.00013871,2]
[333316085,1722053440575,-500.0,0.00013871,2]
[333316087,1722053440585,-500.0,0.00013871,2]
[333316090,1722053440596,-500.0,0.00013871,2]
[333316092,1722053440609,-306.75004329,0.00013871,2]
[333316094,1722053440623,-500.0,0.00013871,2]
[333316097,1722053440635,-500.0,0.00013871,2]
[333316098,1722053440647,-500.0,0.00013871,2]
[333316101,1722053440661,-500.0,0.00013871,2]
[333316102,1722053440672,-500.0,0.00013871,2]
[333316104,1722053440683,-500.0,0.00013871,2]
[333316107,1722053440693,-500.0,0.00013871,2]
[333316109,1722053440704,-155.3404684,0.00013871,2]
[333316111,1722053440715,-500.0,0.00013871,2]
[333316113,1722053440726,-500.0,0.00013871,2]
[333316115,1722053440738,-500.0,0.00013871,2]
[333316118,1722053440751,-208.47108245,0.00013872,2]
[333316120,1722053440764,-196.87058436,0.00013872,2]
[333316122,1722053440775,-88888.0,0.00013872,2]
[333316125,1722053440787,-5097.84,0.000139,2]
[333316127,1722053440799,-925.69851671,0.00013937,2]
[333316129,1722053440809,-3102.7961172,0.00013962,2]
[333316131,1722053440819,-558.45,0.00013971,2]
[333316133,1722053440829,-500.0,0.00013971,2]
[333316135,1722053440841,-500.0,0.00013971,2]
[333316138,1722053440851,-500.0,0.00013971,2]
[333316140,1722053440861,-649.64992587,0.00013972,2]
[333316142,1722053440872,-500.0,0.00013972,2]
[333316144,1722053440883,-467.06961068,0.00013972,2]
[333316146,1722053440894,-500.0,0.00013972,2]
[333316148,1722053440904,-735.1,0.00013972,2]
[333316151,1722053440917,-500.0,0.00013972,2]
[333316153,1722053440928,-500.0,0.00013972,2]
[333316155,1722053440939,-665.68,0.00013972,2]
[333316158,1722053440951,-904.73,0.00013972,2]
[333316160,1722053440965,-500.0,0.00013972,2]
[333316162,1722053440975,-1007.65,0.00013972,2]
[333316164,1722053440987,-500.0,0.00013972,2]
[333316167,1722053440999,-700.53,0.00013972,2]
[333316169,1722053441010,-549.64268531,0.00013972,2]
[333316171,1722053441020,-615.39,0.00013972,2]
[333316173,1722053441031,-500.0,0.00013972,2]
[333316175,1722053441042,-617.33,0.00013972,2]
[333316177,1722053441053,-500.0,0.00013972,2]
[333316180,1722053441063,-516.97210084,0.00013972,2]
[333316182,1722053441074,-708.55,0.00013972,2]
[333316184,1722053441084,-500.0,0.00013972,2]
[333316186,1722053441095,-546.24,0.00013972,2]
[333316188,1722053441105,-659.86,0.00013972,2]
[333316190,1722053441117,-500.0,0.00013972,2]
[333316193,1722053441128,-500.0,0.00013972,2]
[333316195,1722053441139,-500.0,0.00013972,2]
[333316197,1722053441150,-725.05,0.00013972,2]
[333316199,1722053441161,-500.0,0.00013972,2]
[333316201,1722053441171,-873.34,0.00013972,2]
[333316203,1722053441183,-686.35,0.00013972,2]
[333316205,1722053441194,-1216.81,0.00013972,2]
[333316208,1722053441205,-500.0,0.00013972,2]
[333316210,1722053441217,-500.0,0.00013972,2]
[333316212,1722053441228,-500.0,0.00013972,2]
[333316214,1722053441238,-500.0,0.00013972,2]
[333316216,1722053441249,-616.51,0.00013972,2]
[333316218,1722053441258,-515.37747525,0.00013972,2]
[333316220,1722053441269,-886.59,0.00013972,2]
[333316222,1722053441280,-573.07,0.00013972,2]
[333316225,1722053441291,-500.0,0.00013972,2]
[333316227,1722053441301,-617.75,0.00013972,2]
[333316229,1722053441312,-1121.95,0.00013972,2]
[333316231,1722053441322,-500.0,0.00013972,2]
[333316233,1722053441333,-500.0,0.00013972,2]
[333316235,1722053441343,-1785.41,0.00013972,2]
[333316237,1722053441354,-500.0,0.00013972,2]
[333316239,1722053441364,-500.0,0.00013972,2]
[333316242,1722053441375,-4510.1,0.00013972,2]
[333316244,1722053441385,-1419.12,0.00013972,2]
[333316246,1722053441396,-500.0,0.00013972,2]
[333316248,1722053441406,-500.0,0.00013972,2]
[333316250,1722053441417,-501.44,0.00013972,2]
[333316252,1722053441427,-2045.39,0.00013972,2]
[333316254,1722053441438,-1013.01,0.00013972,2]
[333316256,1722053441448,-500.0,0.00013972,2]
[333316258,1722053441459,-1949.73,0.00013972,2]
[333316261,1722053441471,-500.0,0.00013972,2]
[333316263,1722053441481,-956.95,0.00013972,2]
[333316265,1722053441491,-500.0,0.00013972,2]
[333316267,1722053441502,-1114.51,0.00013972,2]
[333316269,1722053441513,-500.0,0.00013972,2]
[333316271,1722053441523,-500.0,0.00013972,2]
[333316274,1722053441534,-2239.0,0.00013972,2]
[333316276,1722053441545,-500.0,0.00013972,2]
[333316278,1722053441555,-7539.14,0.00013972,2]
[333316280,1722053441566,-659.48,0.00013972,2]
[333316282,1722053441580,-500.0,0.00013972,2]
[333316284,1722053441591,-500.0,0.00013972,2]
[333316286,1722053441603,-3240.26,0.00013972,2]
[333316288,1722053441615,-796.05,0.00013972,2]
[333316291,1722053441628,-1698.04,0.00013972,2]
[333316293,1722053441640,-513.73,0.00013972,2]
[333316295,1722053441654,-523.7,0.00013972,2]
[333316298,1722053441665,-500.0,0.00013972,2]
[333316300,1722053441676,-500.0,0.00013972,2]
[333316302,1722053441686,-500.0,0.00013972,2]
[333316304,1722053441697,-500.0,0.00013972,2]
[333316306,1722053441707,-875.08,0.00013972,2]
[333316308,1722053441720,-540.71,0.00013972,2]
[333316311,1722053441731,-812.73,0.00013972,2]
[333316313,1722053441742,-705.22,0.00013972,2]
[333316315,1722053441753,-1992.72,0.00013972,2]
[333316317,1722053441763,-735.65,0.00013972,2]
[333316319,1722053441774,-745.93,0.00013972,2]
[333316321,1722053441784,-1183.49,0.00013972,2]
[333316323,1722053441795,-500.0,0.00013972,2]
[333316326,1722053441807,-504.80512397,0.00013972,2]
[333316328,1722053441818,-3193.74,0.00013972,2]
[333316330,1722053441829,-500.0,0.00013972,2]
[333316332,1722053441841,-6263.19,0.00013972,2]
[333316335,1722053441852,-1157.5,0.00013972,2]
[333316337,1722053441863,-2330.92,0.00013972,2]
[333316339,1722053441874,-1672.62,0.00013972,2]
[333316341,1722053441886,-1039.76,0.00013972,2]
[333316343,1722053441897,-500.0,0.00013972,2]
[333316345,1722053441908,-500.0,0.00013972,2]
[333316347,1722053441921,-500.0,0.00013972,2]
[333316350,1722053441932,-1160.55,0.00013972,2]
[333316352,1722053441942,-1005.6,0.00013972,2]
[333316354,1722053441953,-500.0,0.00013972,2]
[333316374,1722053441963,-710.42,0.00013972,2]
[333316376,1722053442145,-1183.06,0.00013972,2]
[333316378,1722053442154,-500.0,0.00013972,2]
[333316380,1722053442164,-1240.31,0.00013972,2]
[333316382,1722053442173,-500.0,0.00013972,2]
[333316384,1722053442183,-889.48,0.00013972,2]
[333316386,1722053442192,-500.0,0.00013972,2]
[333316388,1722053442201,-500.0,0.00013972,2]
[333316390,1722053442211,-608.23,0.00013972,2]
[333316392,1722053442221,-500.0,0.00013972,2]
[333316394,1722053442230,-554.68,0.00013972,2]
[333316396,1722053442239,-500.0,0.00013972,2]
[333316399,1722053442250,-1859.67,0.00013972,2]
[333316401,1722053442259,-500.0,0.00013972,2]
[333316403,1722053442269,-2132.45624024,0.00013972,2]
[333316448,1722053442683,-10.84375976,0.00013972,2]
[333316450,1722053442693,-433.14076681,0.00013972,2]
[333316529,1722053443637,-66.85923319,0.00013972,2]
[333316532,1722053443648,-239.27082507,0.00013972,2]
[333316534,1722053443666,-260.72917493,0.00013972,2]
[333316536,1722053443677,-800.67,0.00013972,2]
[333316538,1722053443688,-500.0,0.00013972,2]
[333316540,1722053443698,-2341.95,0.00013972,2]
[333316542,1722053443707,-500.0,0.00013972,2]
[333316544,1722053443719,-540.36318348,0.00013972,2]
[333318105,1722053460613,353.72240741,0.00010959,2]
[333318108,1722053460633,1274.80894117,0.00010959,2]
[333318440,1722053463974,94.18418301,0.00010959,2]
[333318444,1722053463998,883.37782567,0.00010959,2]
[333318863,1722053468951,154.68290005,0.00010959,2]
[333318901,1722053472251,154.71377951,0.00010959,2]
[333318902,1722053484562,458.22549477,0.00010959,2]
[333318903,1722053682572,150.69860279,0.00017691,120]
[333318923,1722054169203,150.69860279,0.00017776,120]
[333318924,1722054334175,-200.0,0.0001,2]
[333318925,1722054334200,-400.0,0.0001137,2]
[333318926,1722054334223,-162.67028276,0.00011869,2]
[333318947,1722054397118,-200.0,0.0001,2]
[333318948,1722054397141,-71.44562829,0.0001137,2]
[333318949,1722054419409,150.69860279,0.00018269,120]
[333318951,1722054454128,-165.94893069,0.0001,2]
[333318952,1722054454153,-250.04869026,0.0001137,2]
[333318953,1722054454178,-985.54752459,0.0001137,2]
[333318954,1722054549122,-368.725555,0.0001137,2]
[333318955,1722054549145,-577.74789626,0.0001137,2]
[333318956,1722054549170,-5806.80176838,0.0001137,2]
[333318957,1722054549205,-13644.42603859,0.0001137,2]
[333318958,1722054549229,-1.94907124,0.00011869,2]
[333318959,1722054549252,-1047.9815974,0.00012067,2]
[333318960,1722054559124,-1854.19053923,0.000125,2]
[333318961,1722054565818,1772.94437021,0.0001137,2]
[333318962,1722054575200,190.08,0.00012,2]
[333319220,1722054640710,-702.7602621,0.000125,2]
[333319222,1722054640719,-250.0,0.00012589,2]
[333319224,1722054640732,-250.0,0.00012624,2]
[333319226,1722054640741,-250.0,0.00012658,2]
[333319228,1722054640750,-164.619354,0.00012678,2]
[333319230,1722054640760,-250.0,0.00012693,2]
[333319232,1722054640770,-250.0,0.00012727,2]
[333319234,1722054640780,-250.0,0.00012762,2]
[333319236,1722054640790,-250.0,0.00012797,2]
[333319238,1722054640799,-250.0,0.00012831,2]
[333319240,1722054640809,-250.0,0.00012866,2]
[333319242,1722054640819,-250.0,0.000129,2]
[333319244,1722054640829,-250.0,0.00012935,2]
[333319246,1722054640838,-413.3132852,0.00012959,2]
[333319248,1722054640848,-250.0,0.00012969,2]
[333319250,1722054640857,-250.0,0.00013004,2]
[333319252,1722054640866,-250.0,0.00013038,2]
[333319254,1722054640876,-250.0,0.00013073,2]
[333319256,1722054640885,-250.0,0.00013107,2]
[333319258,1722054640895,-250.0,0.00013142,2]
[333319260,1722054640905,-250.0,0.00013176,2]
[333319262,1722054640915,-250.0,0.00013211,2]
[333319264,1722054640924,-300.0,0.00013245,2]
[333319266,1722054640934,-300.0,0.00013245,2]
[333319269,1722054640943,-250.0,0.00013245,2]
[333319271,1722054640953,-178.897482,0.00013425,2]
[333319273,1722054640962,-164.619354,0.00013487,2]
[333319275,1722054640972,-932.89144855,0.00013544,2]
[333319277,1722054640984,-2234.35692529,0.00013598,2]
[333319279,1722054640994,-1905.86913976,0.000136,2]
[333319281,1722054641006,-30339.2113219,0.000136,2]
[333319283,1722054641016,-2234.35692526,0.00013645,2]
[333319285,1722054641026,-601.68805143,0.00013676,2]
[333319287,1722054641035,-5272.44162799,0.00013686,2]
[333319289,1722054641046,-3254.89821459,0.00013686,2]
[333319580,1722054643879,-1115.42130348,0.00013686,2]
[333319582,1722054643890,-8353.52252701,0.00013686,2]
[333319584,1722054643899,-7331.33584704,0.00013688,2]
[333319586,1722054643909,-755.57915233,0.00013691,2]
[333319590,1722054643940,-1478.77777293,0.00013691,2]
[333319592,1722054643949,-500.0,0.00013698,2]
[333319594,1722054643959,-500.0,0.00013698,2]
[333319596,1722054643968,-500.0,0.00013698,2]
[333319598,1722054643977,-500.0,0.00013698,2]
[333319600,1722054643987,-500.0,0.00013698,2]
[333319602,1722054643997,-500.0,0.00013698,2]
[333319604,1722054644006,-500.0,0.00013698,2]
[333319606,1722054644016,-500.0,0.00013698,2]
[333319608,1722054644026,-500.0,0.00013698,2]
[333319610,1722054644035,-500.0,0.00013698,2]
[333319612,1722054644045,-500.0,0.00013698,2]
[333319614,1722054644054,-500.0,0.00013698,2]
[333319616,1722054644063,-500.0,0.00013698,2]
[333319618,1722054644073,-500.0,0.00013698,2]
[333319620,1722054644083,-500.0,0.00013698,2]
[333319622,1722054644092,-443.02222707,0.00013698,2]
[333319925,1722054646942,-783.06362585,0.000125,2]
[333322182,1722054741093,273.37336231,9.9e-05,2]
[333322183,1722054749008,273.37336231,9.9e-05,2]
[333322212,1722055402207,-273.37336231,9.606e-05,2]
[333322213,1722055402243,-2006.24346757,9.9e-05,2]
[333322214,1722055402277,-850.00911267,9.999e-05,2]
[333322215,1722055402311,-182.98285056,9.999e-05,2]
[333322216,1722055495506,182.98285056,9.999e-05,2]
[333322217,1722055525506,182.98285056,9.999e-05,2]
[333322218,1722055562893,200.0,0.0001,2]
[333322239,1722055589810,376.45103975,9.999e-05,2]
[333322240,1722055617582,273.37336231,9.9e-05,2]
[333322241,1722055622028,2816.94,0.00020827,60]
[333322242,1722055631224,200.0,0.0001,2]
[333322243,1722055632497,182.98285056,9.999e-05,2]
[333322244,1722055634278,-736.87,0.00010959,2]
[333322245,1722055634300,-200.0,0.0001137,2]
[333322246,1722055634321,-167.077646,0.00012097,2]
[333322247,1722055634344,-167.077646,0.00012187,2]
[333322248,1722055634369,-106.60134569,0.00012277,2]
[333322249,1722055637103,-60.47630031,0.00012277,2]
[333322250,1722055637126,-167.077646,0.00012367,2]
[333322251,1722055637149,-167.077646,0.00012457,2]
[333322252,1722055637172,-167.077646,0.00012547,2]
[333322253,1722055637196,-167.077646,0.00012637,2]
[333322254,1722055637218,-167.077646,0.00012727,2]
[333322255,1722055637238,-154.3358691,0.00013078,2]
[333322256,1722055637259,-182.414568,0.00013425,2]
[333322257,1722055637281,-756.85797521,0.000135,2]
[333322258,1722055641110,-268.36711833,0.000135,2]
[333322259,1722055641137,-247.45017419,0.00013503,2]
[333322260,1722055641162,-1155.07709689,0.00013546,2]
[333322279,1722055831830,-178.234523,0.00013425,2]
[333322281,1722055831840,-133.895477,0.00013498,2]
[333322311,1722055837942,-763.17647983,0.00013498,2]
[333322314,1722055837952,-254.39753532,0.000135,2]
[333322339,1722055838185,-676.124658,0.000135,2]
[333322341,1722055838195,-930.5221933,0.00013525,2]
[333322343,1722055838205,-150.44543525,0.00013535,2]
[333322345,1722055838215,-125.45581832,0.00013545,2]
[333322348,1722055838236,-174.54418168,0.00013545,2]
[333322350,1722055838246,-162.0,0.00013545,2]
[333322352,1722055838256,-1157.05047166,0.00013546,2]
[333322354,1722055838265,-309.32421162,0.00013546,2]
[333322356,1722055838275,-154.82456491,0.00013546,2]
[333322358,1722055838287,-3438.55693464,0.00013546,2]
[333322360,1722055838298,-7527.52072221,0.00013546,2]
[333322362,1722055838308,-930.5221933,0.00013549,2]
[333322364,1722055838318,-930.5221933,0.00013574,2]
[333322366,1722055838328,-9769.29027977,0.00013588,2]
[333322368,1722055838337,-930.5221933,0.00013598,2]
[333322370,1722055838347,-814.27476564,0.00013598,2]
[333322372,1722055838358,-20234.50726535,0.00013598,2]
[333322374,1722055838368,-200.0,0.00013598,2]
[333322376,1722055838378,-2000.0,0.00013598,2]
[333322378,1722055838388,-88888.0,0.00013598,2]
[333322380,1722055838398,-1524.06309899,0.000136,2]
[333322382,1722055838408,-150.112233,0.000136,2]
[333322384,1722055838418,-10704.36469063,0.00013631,2]
[333322388,1722055838441,-1025.65158518,0.00013631,2]
[333322549,1722055839999,-7808.56428369,0.00013631,2]
[333322551,1722055840009,-13458.94187194,0.00013641,2]
[333322553,1722055840021,-88740.39552701,0.00013641,2]
[333322555,1722055840033,-151.0,0.00013688,2]
[333322557,1722055840045,-58615.7416786,0.00013688,2]
[333322560,1722055840055,-56.97777293,0.00013698,2]
[333322563,1722055840064,-589.65619538,0.00013698,2]
[333322566,1722055840074,-558.45,0.00013698,2]
[333322569,1722055840085,-500.0,0.00013698,2]
[333322570,1722055840095,-500.0,0.00013698,2]
[333322573,1722055840105,-500.0,0.00013698,2]
[333322575,1722055840115,-175.35,0.00013698,2]
[333322577,1722055840125,-500.0,0.00013698,2]
[333322579,1722055840134,-401.54,0.00013698,2]
[333322581,1722055840144,-500.0,0.00013698,2]
[333322583,1722055840154,-500.0,0.00013698,2]
[333322585,1722055840163,-500.0,0.00013698,2]
[333322587,1722055840172,-500.0,0.00013698,2]
[333322589,1722055840182,-500.0,0.00013698,2]
[333322590,1722055840192,-500.0,0.00013698,2]
[333322592,1722055840202,-606.16,0.00013698,2]
[333322595,1722055840213,-500.0,0.00013698,2]
[333322597,1722055840222,-500.0,0.00013698,2]
[333322599,1722055840232,-500.0,0.00013698,2]
[333322601,1722055840242,-501.53067688,0.00013698,2]
[333322603,1722055840252,-500.0,0.00013698,2]
[333322605,1722055840262,-500.0,0.00013698,2]
[333322607,1722055840271,-500.0,0.00013698,2]
[333322609,1722055840281,-533.48808814,0.00013698,2]
[333322611,1722055840291,-500.0,0.00013698,2]
[333322613,1722055840303,-505.35325312,0.00013698,2]
[333322615,1722055840313,-500.0,0.00013698,2]
[333322617,1722055840323,-500.0,0.00013698,2]
[333322619,1722055840333,-503.57049156,0.00013698,2]
[333322621,1722055840343,-500.0,0.00013698,2]
[333322623,1722055840354,-500.0,0.00013698,2]
[333322625,1722055840364,-500.0,0.00013698,2]
[333322627,1722055840374,-57.79390933,0.00013698,2]
[333322873,1722055842882,-409.65522624,0.00013698,2]
[333322878,1722055842916,-32.55086443,0.00013698,2]
[333322880,1722055842927,-299.21881575,0.00013698,2]
[333322885,1722055842953,-200.78118425,0.00013698,2]
[333322887,1722055842963,-500.0,0.00013698,2]
[333322889,1722055842972,-500.0,0.00013698,2]
[333322891,1722055842982,-475.56671008,0.00013698,2]
[333323188,1722055845863,-24.43328992,0.00013698,2]
[333323190,1722055845873,-583.18808271,0.00013698,2]
[333323192,1722055845883,-129.24943078,0.00013698,2]
[333324772,1722055885773,447.69,0.00010959,2]
[333324795,1722056500182,280.24150168,9.999e-05,2]
[333325174,1722056826135,-167.8219576,0.00012322,2]
[333325175,1722056826160,-631.82605815,0.00013059,2]
[333325176,1722056826182,-178.234523,0.00013425,2]
[333325177,1722056826209,-1770.42909228,0.00013484,2]
[333325178,1722056850093,-1046.03717982,0.00013484,2]
[333325179,1722056850125,-1409.0,0.00013491,2]
[333325180,1722056850150,-247.45017419,0.00013581,2]
[333325181,1722056850373,-406.96350715,0.00013588,2]
[333325182,1722056951118,-782.84,0.00010959,2]
[333325183,1722056956311,228.2345616,9.9e-05,2]
[333325184,1722056960569,200.0,0.0001,2]
[333325215,1722057014039,154.71377951,0.00012121,2]
[333325216,1722057014348,458.22549477,0.00012121,2]
[333325217,1722057022819,353.72240741,0.0001,2]
[333325218,1722057027832,442.35315002,0.00012121,2]
[333325219,1722057027855,441.02467565,0.00012121,2]
[333325260,1722057038372,-620.77793659,0.00012587,2]
[333325261,1722057038384,-165.459748,0.00012688,2]
[333325262,1722057038396,-165.459748,0.00012908,2]
[333325263,1722057038406,-165.459748,0.00013128,2]
[333325264,1722057038416,-165.459748,0.00013349,2]
[333325265,1722057038428,-178.234523,0.00013425,2]
[333325266,1722057038439,-300.0,0.00013587,2]
[333325267,1722057038450,-7527.52072221,0.00013588,2]
[333325268,1722057038461,-1593.03649285,0.00013588,2]
[333325269,1722057038471,-732.84728904,0.00013598,2]
[333325270,1722057038481,-88888.0,0.00013598,2]
[333325271,1722057038490,-100042.411324,0.0001364,2]
[333325272,1722057038500,-160647.1093479,0.0001365,2]
[333325273,1722057038510,-151.0,0.00013688,2]
[333325274,1722057038521,-151.0,0.00013688,2]
[333325275,1722057038533,-292.440076,0.00013688,2]
[333325276,1722057038543,-151.0,0.00013688,2]
[333325277,1722057038554,-151.0,0.00013688,2]
[333325278,1722057038565,-14806.97619136,0.00013688,2]
[333325279,1722057038578,-818.75508754,0.00013688,2]
[333325294,1722057040282,-189.0691234,0.00012419,2]
[333325295,1722057040291,-134437.8857061,0.00013688,2]
[333325296,1722057040301,-500.0,0.00013698,2]
[333325297,1722057040311,-332.67405559,0.00013698,2]
[333325298,1722057040324,-500.0,0.00013698,2]
[333325299,1722057040334,-500.0,0.00013698,2]
[333325300,1722057040343,-500.0,0.00013698,2]
[333325301,1722057040354,-500.0,0.00013698,2]
[333325302,1722057040363,-500.0,0.00013698,2]
[333325303,1722057040373,-500.0,0.00013698,2]
[333325304,1722057040382,-500.0,0.00013698,2]
[333325305,1722057040393,-500.0,0.00013698,2]
[333325306,1722057040402,-500.0,0.00013698,2]
[333325307,1722057040412,-500.0,0.00013698,2]
[333325308,1722057040421,-500.0,0.00013698,2]
[333325309,1722057040431,-500.0,0.00013698,2]
[333325310,1722057040440,-500.0,0.00013698,2]
[333325311,1722057040449,-500.0,0.00013698,2]
[333325312,1722057040459,-388.13396831,0.00013698,2]
[333325313,1722057040468,-500.0,0.00013698,2]
[333325314,1722057040477,-621.66820482,0.00013698,2]
[333325315,1722057040487,-500.0,0.00013698,2]
[333325316,1722057040496,-500.0,0.00013698,2]
[333325317,1722057040506,-500.0,0.00013698,2]
[333325318,1722057040515,-503.37947406,0.00013698,2]
[333325319,1722057040525,-500.0,0.00013698,2]
[333325320,1722057040534,-503.58566811,0.00013698,2]
[333325321,1722057040544,-500.0,0.00013698,2]
[333325322,1722057040555,-500.0,0.00013698,2]
[333325323,1722057040565,-500.0,0.00013698,2]
[333325324,1722057040575,-500.0,0.00013698,2]
[333325325,1722057040585,-500.0,0.00013698,2]